{"text_format":"1","workbook":"xlsx","n_sheets":1,"sheets":["Mark All"],"not_rendered":{"charts":0,"images":0,"macros":1,"external_links":0,"defined_names":12,"comments":0,"pivot_tables":0},"unopened":[],"bounds":{"document_bytes":16777216,"sheet_cells":100000,"rows_first":2000,"rows_last":500,"rows_between":2000,"halvings":0,"cell_chars":16384,"cell_head_chars":4096},"cells_cut":0,"cells_raw":0,"read":"whole","date_system":"1900"}

{"sheet":"Mark All","index":0,"n_rows":68,"n_cols":123,"rows_kept":68,"cut":false,"hidden":false,"merged":[[4,0,7,0],[4,1,7,1],[4,2,4,12],[4,13,4,23],[4,24,4,34],[6,29,6,34],[5,2,5,12],[5,13,5,23],[5,24,5,34],[6,2,6,6],[6,7,6,12],[6,13,6,17],[6,18,6,23],[6,24,6,28],[4,79,4,89],[4,90,4,100],[5,90,5,100],[5,101,5,111],[5,79,5,89],[6,35,6,39],[6,40,6,45],[4,46,4,56],[4,57,4,67],[4,68,4,78],[5,35,5,45],[5,46,5,56],[6,73,6,78],[6,46,6,50],[6,51,6,56],[6,57,6,61],[6,62,6,67],[6,68,6,72],[5,57,5,67],[5,68,5,78],[4,35,4,45],[6,79,6,83],[6,84,6,89],[6,90,6,94],[6,95,6,100],[6,101,6,105],[6,106,6,111],[6,112,6,116],[6,117,6,122],[4,123,4,128],[5,128,7,128],[5,123,7,123],[5,124,7,124],[5,125,5,127],[6,125,7,125],[6,126,7,126],[6,127,7,127],[4,101,4,111],[4,112,4,122],[5,112,5,122],[5,131,7,131],[5,132,7,132],[5,133,7,133],[4,131,4,133],[4,129,4,130],[5,129,7,129],[5,130,7,130]]}
[1,2,3,4,5,6,7,8,9,10,11,12,13,14,15,16,17,18,19,20,21,22,23,24,25,26,27,28,29,30,31,32,33,34,35,36,37,38,39,40,41,42,43,44,45,46,47,48,49,50,51,52,53,54,55,56,57,58,59,60,61,62,63,64,65,66,67,68,69,70,71,72,73,74,75,76,77,78,79,80,81,82,83,84,85,86,87,88,89,90,91,92,93,94,95,96,97,98,99,100,101,102,103,104,105,106,107,108,109,110,111,112,113,114,115,116,117,118,119,120,121,122,123]
[{"$f":"COUNTA(Nm)","v":60}]
[]
[{"$f":"COUNTA(Nm)","v":60},null,20,20,20,40,100,20,20,20,40,100,200,20,20,20,40,100,20,20,20,40,100,200,20,20,20,40,100,20,20,20,40,100,200,20,20,20,40,100,20,20,20,40,100,200,20,20,20,40,100,20,20,20,40,100,200,20,20,20,40,100,20,20,20,40,100,200,20,20,20,40,100,20,20,20,40,100,200,20,20,20,40,100,20,20,20,40,100,200,20,20,20,40,100,20,20,20,40,100,200,20,20,20,40,100,20,20,20,40,100,200,20,20,20,40,100,20,20,20,40,100,200]
["الرقم","الاسم","التربية الإسلامية ",null,null,null,null,null,null,null,null,null,null,"اللغة العربية ",null,null,null,null,null,null,null,null,null,null,"اللغة الإنجليزية",null,null,null,null,null,null,null,null,null,null,"التربية الرياضية",null,null,null,null,null,null,null,null,null,null,"تاريخ ",null,null,null,null,null,null,null,null,null,null,"الرياضيات",null,null,null,null,null,null,null,null,null,null,"الفيزياء",null,null,null,null,null,null,null,null,null,null,"الكيمياء",null,null,null,null,null,null,null,null,null,null,"العلوم الحياتية ",null,null,null,null,null,null,null,null,null,null,"علوم الارض و البيئة ",null,null,null,null,null,null,null,null,null,null,"المهارات الرقمية"]
[null,null,1,null,null,null,null,null,null,null,null,null,null,2,null,null,null,null,null,null,null,null,null,null,3,null,null,null,null,null,null,null,null,null,null,4,null,null,null,null,null,null,null,null,null,null,5,null,null,null,null,null,null,null,null,null,null,6,null,null,null,null,null,null,null,null,null,null,7,null,null,null,null,null,null,null,null,null,null,8,null,null,null,null,null,null,null,null,null,null,9,null,null,null,null,null,null,null,null,null,null,10,null,null,null,null,null,null,null,null,null,null,11]
[null,null,"فصل اول",null,null,null,null,"فصل ثاني",null,null,null,null,null,"فصل اول",null,null,null,null,"فصل ثاني",null,null,null,null,null,"فصل اول",null,null,null,null,"فصل ثاني",null,null,null,null,null,"فصل اول",null,null,null,null,"فصل ثاني",null,null,null,null,null,"فصل اول",null,null,null,null,"فصل ثاني",null,null,null,null,null,"فصل اول",null,null,null,null,"فصل ثاني",null,null,null,null,null,"فصل اول",null,null,null,null,"فصل ثاني",null,null,null,null,null,"فصل اول",null,null,null,null,"فصل ثاني",null,null,null,null,null,"فصل اول",null,null,null,null,"فصل ثاني",null,null,null,null,null,"فصل اول",null,null,null,null,"فصل ثاني",null,null,null,null,null,"فصل اول",null,null,null,null,"فصل ثاني"]
[null,null,"التقويم الأول ","التقويم الثاني","التقويم الثالث","التقويم الرابع ","مجموع","التقويم الأول ","التقويم الثاني","التقويم الثالث","التقويم الرابع ","مجموع","مجموع نهائي","التقويم الأول ","التقويم الثاني","التقويم الثالث","التقويم الرابع ","مجموع","التقويم الأول ","التقويم الثاني","التقويم الثالث","التقويم الرابع ","مجموع","مجموع نهائي","التقويم الأول ","التقويم الثاني","التقويم الثالث","التقويم الرابع ","مجموع","التقويم الأول ","التقويم الثاني","التقويم الثالث","التقويم الرابع ","مجموع","مجموع نهائي","التقويم الأول ","التقويم الثاني","التقويم الثالث","التقويم الرابع ","مجموع","التقويم الأول ","التقويم الثاني","التقويم الثالث","التقويم الرابع ","مجموع","مجموع نهائي","التقويم الأول ","التقويم الثاني","التقويم الثالث","التقويم الرابع ","مجموع","التقويم الأول ","التقويم الثاني","التقويم الثالث","التقويم الرابع ","مجموع","مجموع نهائي","التقويم الأول ","التقويم الثاني","التقويم الثالث","التقويم الرابع ","مجموع","التقويم الأول ","التقويم الثاني","التقويم الثالث","التقويم الرابع ","مجموع","مجموع نهائي","التقويم الأول ","التقويم الثاني","التقويم الثالث","التقويم الرابع ","مجموع","التقويم الأول ","التقويم الثاني","التقويم الثالث","التقويم الرابع ","مجموع","مجموع نهائي","التقويم الأول ","التقويم الثاني","التقويم الثالث","التقويم الرابع ","مجموع","التقويم الأول ","التقويم الثاني","التقويم الثالث","التقويم الرابع ","مجموع","مجموع نهائي","التقويم الأول ","التقويم الثاني","التقويم الثالث","التقويم الرابع ","مجموع","التقويم الأول ","التقويم الثاني","التقويم الثالث","التقويم الرابع ","مجموع","مجموع نهائي","التقويم الأول ","التقويم الثاني","التقويم الثالث","التقويم الرابع ","مجموع","التقويم الأول ","التقويم الثاني","التقويم الثالث","التقويم الرابع ","مجموع","مجموع نهائي","التقويم الأول ","التقويم الثاني","التقويم الثالث","التقويم الرابع ","مجموع","التقويم الأول ","التقويم الثاني","التقويم الثالث","التقويم الرابع ","مجموع","مجموع نهائي"]
[1,"محمد احمد محمود 1",1,null,2,3,100,null,null,null,null,100,{"$f":"IF(COUNT(G9,L9)>1,ROUND((G9+L9),0),\"\")","v":200},null,null,null,null,100,null,null,null,null,100,{"$f":"IF(COUNT(R9,W9)>1,ROUND((R9+W9),0),\"\")","v":200},null,null,null,null,100,null,null,null,null,100,{"$f":"IF(COUNT(AC9,AH9)>1,ROUND((AC9+AH9),0),\"\")","v":200},null,null,null,null,{"$f":"IF(COUNT(AJ9:AM9)>3,SUM(AJ9:AM9),\"\")","v":""},null,null,null,null,100,{"$f":"IF(COUNT(AN9,AS9)>1,ROUND((AN9+AS9),0),\"\")","v":""},null,null,null,null,100,null,null,null,null,100,{"$f":"IF(COUNT(AY9,BD9)>1,ROUND((AY9+BD9),0),\"\")","v":200},null,null,null,null,100,null,null,null,null,100,{"$f":"IF(COUNT(BJ9,BO9)>1,ROUND((BJ9+BO9),0),\"\")","v":200},null,null,null,null,100,null,null,null,null,100,{"$f":"IF(COUNT(BU9,BZ9)>1,ROUND((BU9+BZ9),0),\"\")","v":200},null,null,null,null,100,null,null,null,null,100,{"$f":"IF(COUNT(CF9,CK9)>1,ROUND((CF9+CK9),0),\"\")","v":200},null,null,null,null,100,null,null,null,null,100,{"$f":"IF(COUNT(CQ9,CV9)>1,ROUND((CQ9+CV9),0),\"\")","v":200},null,null,null,null,100,null,null,null,null,100,{"$f":"IF(COUNT(DB9,DG9)>1,ROUND((DB9+DG9),0),\"\")","v":200},null,null,null,null,2,null,null,null,null,66,{"$f":"IF(COUNT(DM9,DR9)>1,ROUND((DM9+DR9),0),\"\")","v":68}]
[2,"محمد احمد محمود 2",2,null,4,6,{"$f":"IF(COUNT(C10:F10)>3,SUM(C10:F10),\"\")","v":""},null,null,null,null,{"$f":"IF(COUNT(H10:K10)>3,SUM(H10:K10),\"\")","v":""},"",null,null,null,null,{"$f":"IF(COUNT(N10:Q10)>3,SUM(N10:Q10),\"\")","v":""},null,null,null,null,{"$f":"IF(COUNT(S10:V10)>3,SUM(S10:V10),\"\")","v":""},"",null,null,null,null,{"$f":"IF(COUNT(Y10:AB10)>3,SUM(Y10:AB10),\"\")","v":""},null,null,null,null,{"$f":"IF(COUNT(AD10:AG10)>3,SUM(AD10:AG10),\"\")","v":""},"",null,null,null,null,"",null,null,null,null,{"$f":"IF(COUNT(AO10:AR10)>3,SUM(AO10:AR10),\"\")","v":""},"",null,null,null,null,{"$f":"IF(COUNT(AU10:AX10)>3,SUM(AU10:AX10),\"\")","v":""},null,null,null,null,{"$f":"IF(COUNT(AZ10:BC10)>3,SUM(AZ10:BC10),\"\")","v":""},"",null,null,null,null,{"$f":"IF(COUNT(BF10:BI10)>3,SUM(BF10:BI10),\"\")","v":""},null,null,null,null,{"$f":"IF(COUNT(BK10:BN10)>3,SUM(BK10:BN10),\"\")","v":""},"",null,null,null,null,{"$f":"IF(COUNT(BQ10:BT10)>3,SUM(BQ10:BT10),\"\")","v":""},null,null,null,null,{"$f":"IF(COUNT(BV10:BY10)>3,SUM(BV10:BY10),\"\")","v":""},"",null,null,null,null,{"$f":"IF(COUNT(CB10:CE10)>3,SUM(CB10:CE10),\"\")","v":""},null,null,null,null,{"$f":"IF(COUNT(CG10:CJ10)>3,SUM(CG10:CJ10),\"\")","v":""},"",null,null,null,null,{"$f":"IF(COUNT(CM10:CP10)>3,SUM(CM10:CP10),\"\")","v":""},null,null,null,null,{"$f":"IF(COUNT(CR10:CU10)>3,SUM(CR10:CU10),\"\")","v":""},"",null,null,null,null,{"$f":"IF(COUNT(CX10:DA10)>3,SUM(CX10:DA10),\"\")","v":""},null,null,null,null,{"$f":"IF(COUNT(DC10:DF10)>3,SUM(DC10:DF10),\"\")","v":""},"",null,null,null,null,{"$f":"IF(COUNT(DI10:DL10)>3,SUM(DI10:DL10),\"\")","v":""},null,null,null,null,{"$f":"IF(COUNT(DN10:DQ10)>3,SUM(DN10:DQ10),\"\")","v":""},""]
[3,"محمد احمد محمود 3",3,null,6,9,"",null,null,null,null,"","",null,null,null,null,"",null,null,null,null,"","",null,null,null,null,"",null,null,null,null,"","",null,null,null,null,"",null,null,null,null,"","",null,null,null,null,"",null,null,null,null,"","",null,null,null,null,"",null,null,null,null,"","",null,null,null,null,"",null,null,null,null,"","",null,null,null,null,"",null,null,null,null,"","",null,null,null,null,"",null,null,null,null,"","",null,null,null,null,"",null,null,null,null,"","",null,null,null,null,"",null,null,null,null,"",""]
[4,"محمد احمد محمود 4",4,null,8,12,"",null,null,null,null,"","",null,null,null,null,"",null,null,null,null,"","",null,null,null,null,"",null,null,null,null,"","",null,null,null,null,"",null,null,null,null,"","",null,null,null,null,"",null,null,null,null,"","",null,null,null,null,"",null,null,null,null,"","",null,null,null,null,"",null,null,null,null,"","",null,null,null,null,"",null,null,null,null,"","",null,null,null,null,"",null,null,null,null,"","",null,null,null,null,"",null,null,null,null,"","",null,null,null,null,"",null,null,null,null,"",""]
[5,"محمد احمد محمود 5",5,null,10,15,"",null,null,null,null,"","",null,null,null,null,"",null,null,null,null,"","",null,null,null,null,"",null,null,null,null,"","",null,null,null,null,"",null,null,null,null,"","",null,null,null,null,"",null,null,null,null,"","",null,null,null,null,"",null,null,null,null,"","",null,null,null,null,"",null,null,null,null,"","",null,null,null,null,"",null,null,null,null,"","",null,null,null,null,"",null,null,null,null,"","",null,null,null,null,"",null,null,null,null,"","",null,null,null,null,"",null,null,null,null,"",""]
[6,"محمد احمد محمود 6",6,null,12,18,"",null,null,null,null,"","",null,null,null,null,"",null,null,null,null,"","",null,null,null,null,"",null,null,null,null,"","",null,null,null,null,"",null,null,null,null,"","",null,null,null,null,"",null,null,null,null,"","",null,null,null,null,"",null,null,null,null,"","",null,null,null,null,"",null,null,null,null,"","",null,null,null,null,"",null,null,null,null,"","",null,null,null,null,"",null,null,null,null,"","",null,null,null,null,"",null,null,null,null,"","",null,null,null,null,"",null,null,null,null,"",""]
[7,"محمد احمد محمود 7",7,null,14,21,"",null,null,null,null,"","",null,null,null,null,"",null,null,null,null,"","",null,null,null,null,"",null,null,null,null,"","",null,null,null,null,"",null,null,null,null,"","",null,null,null,null,"",null,null,null,null,"","",null,null,null,null,"",null,null,null,null,"","",null,null,null,null,"",null,null,null,null,"","",null,null,null,null,"",null,null,null,null,"","",null,null,null,null,"",null,null,null,null,"","",null,null,null,null,"",null,null,null,null,"","",null,null,null,null,"",null,null,null,null,"",""]
[8,"محمد احمد محمود 8",8,null,16,24,"",null,null,null,null,"","",null,null,null,null,"",null,null,null,null,"","",null,null,null,null,"",null,null,null,null,"","",null,null,null,null,"",null,null,null,null,"","",null,null,null,null,"",null,null,null,null,"","",null,null,null,null,"",null,null,null,null,"","",null,null,null,null,"",null,null,null,null,"","",null,null,null,null,"",null,null,null,null,"","",null,null,null,null,"",null,null,null,null,"","",null,null,null,null,"",null,null,null,null,"","",null,null,null,null,"",null,null,null,null,"",""]
[9,"محمد احمد محمود 9",9,null,18,27,"",null,null,null,null,"","",null,null,null,null,"",null,null,null,null,"","",null,null,null,null,"",null,null,null,null,"","",null,null,null,null,"",null,null,null,null,"","",null,null,null,null,"",null,null,null,null,"","",null,null,null,null,"",null,null,null,null,"","",null,null,null,null,"",null,null,null,null,"","",null,null,null,null,"",null,null,null,null,"","",null,null,null,null,"",null,null,null,null,"","",null,null,null,null,"",null,null,null,null,"","",null,null,null,null,"",null,null,null,null,"",""]
[10,"محمد احمد محمود 10",10,null,20,30,"",null,null,null,null,"","",null,null,null,null,"",null,null,null,null,"","",null,null,null,null,"",null,null,null,null,"","",null,null,null,null,"",null,null,null,null,"","",null,null,null,null,"",null,null,null,null,"","",null,null,null,null,"",null,null,null,null,"","",null,null,null,null,"",null,null,null,null,"","",null,null,null,null,"",null,null,null,null,"","",null,null,null,null,"",null,null,null,null,"","",null,null,null,null,"",null,null,null,null,"","",null,null,null,null,"",null,null,null,null,"",""]
[11,"محمد احمد محمود 11",11,null,22,33,"",null,null,null,null,"","",null,null,null,null,"",null,null,null,null,"","",null,null,null,null,"",null,null,null,null,"","",null,null,null,null,"",null,null,null,null,"","",null,null,null,null,"",null,null,null,null,"","",null,null,null,null,"",null,null,null,null,"","",null,null,null,null,"",null,null,null,null,"","",null,null,null,null,"",null,null,null,null,"","",null,null,null,null,"",null,null,null,null,"","",null,null,null,null,"",null,null,null,null,"","",null,null,null,null,"",null,null,null,null,"",""]
[12,"محمد احمد محمود 12",12,null,24,36,"",null,null,null,null,"","",null,null,null,null,"",null,null,null,null,"","",null,null,null,null,"",null,null,null,null,"","",null,null,null,null,"",null,null,null,null,"","",null,null,null,null,"",null,null,null,null,"","",null,null,null,null,"",null,null,null,null,"","",null,null,null,null,"",null,null,null,null,"","",null,null,null,null,"",null,null,null,null,"","",null,null,null,null,"",null,null,null,null,"","",null,null,null,null,"",null,null,null,null,"","",null,null,null,null,"",null,null,null,null,"",""]
[13,"محمد احمد محمود 13",13,null,26,39,"",null,null,null,null,"","",null,null,null,null,"",null,null,null,null,"","",null,null,null,null,"",null,null,null,null,"","",null,null,null,null,"",null,null,null,null,"","",null,null,null,null,"",null,null,null,null,"","",null,null,null,null,"",null,null,null,null,"","",null,null,null,null,"",null,null,null,null,"","",null,null,null,null,"",null,null,null,null,"","",null,null,null,null,"",null,null,null,null,"","",null,null,null,null,"",null,null,null,null,"","",null,null,null,null,"",null,null,null,null,"",""]
[14,"محمد احمد محمود 14",14,null,28,42,"",null,null,null,null,"","",null,null,null,null,"",null,null,null,null,"","",null,null,null,null,"",null,null,null,null,"","",null,null,null,null,"",null,null,null,null,"","",null,null,null,null,"",null,null,null,null,"","",null,null,null,null,"",null,null,null,null,"","",null,null,null,null,"",null,null,null,null,"","",null,null,null,null,"",null,null,null,null,"","",null,null,null,null,"",null,null,null,null,"","",null,null,null,null,"",null,null,null,null,"","",null,null,null,null,"",null,null,null,null,"",""]
[15,"محمد احمد محمود 15",15,null,30,45,"",null,null,null,null,"","",null,null,null,null,"",null,null,null,null,"","",null,null,null,null,"",null,null,null,null,"","",null,null,null,null,"",null,null,null,null,"","",null,null,null,null,"",null,null,null,null,"","",null,null,null,null,"",null,null,null,null,"","",null,null,null,null,"",null,null,null,null,"","",null,null,null,null,"",null,null,null,null,"","",null,null,null,null,"",null,null,null,null,"","",null,null,null,null,"",null,null,null,null,"","",null,null,null,null,"",null,null,null,null,"",""]
[16,"محمد احمد محمود 16",16,null,32,48,"",null,null,null,null,"","",null,null,null,null,"",null,null,null,null,"","",null,null,null,null,"",null,null,null,null,"","",null,null,null,null,"",null,null,null,null,"","",null,null,null,null,"",null,null,null,null,"","",null,null,null,null,"",null,null,null,null,"","",null,null,null,null,"",null,null,null,null,"","",null,null,null,null,"",null,null,null,null,"","",null,null,null,null,"",null,null,null,null,"","",null,null,null,null,"",null,null,null,null,"","",null,null,null,null,"",null,null,null,null,"",""]
[17,"محمد احمد محمود 17",17,null,34,51,"",null,null,null,null,"","",null,null,null,null,"",null,null,null,null,"","",null,null,null,null,"",null,null,null,null,"","",null,null,null,null,"",null,null,null,null,"","",null,null,null,null,"",null,null,null,null,"","",null,null,null,null,"",null,null,null,null,"","",null,null,null,null,"",null,null,null,null,"","",null,null,null,null,"",null,null,null,null,"","",null,null,null,null,"",null,null,null,null,"","",null,null,null,null,"",null,null,null,null,"","",null,null,null,null,"",null,null,null,null,"",""]
[18,"محمد احمد محمود 18",18,null,36,54,"",null,null,null,null,"","",null,null,null,null,"",null,null,null,null,"","",null,null,null,null,"",null,null,null,null,"","",null,null,null,null,"",null,null,null,null,"","",null,null,null,null,"",null,null,null,null,"","",null,null,null,null,"",null,null,null,null,"","",null,null,null,null,"",null,null,null,null,"","",null,null,null,null,"",null,null,null,null,"","",null,null,null,null,"",null,null,null,null,"","",null,null,null,null,"",null,null,null,null,"","",null,null,null,null,"",null,null,null,null,"",""]
[19,"محمد احمد محمود 19",19,null,38,57,"",null,null,null,null,"","",null,null,null,null,"",null,null,null,null,"","",null,null,null,null,"",null,null,null,null,"","",null,null,null,null,"",null,null,null,null,"","",null,null,null,null,"",null,null,null,null,"","",null,null,null,null,"",null,null,null,null,"","",null,null,null,null,"",null,null,null,null,"","",null,null,null,null,"",null,null,null,null,"","",null,null,null,null,"",null,null,null,null,"","",null,null,null,null,"",null,null,null,null,"","",null,null,null,null,"",null,null,null,null,"",""]
[20,"محمد احمد محمود 20",20,null,40,60,"",null,null,null,null,"","",null,null,null,null,"",null,null,null,null,"","",null,null,null,null,"",null,null,null,null,"","",null,null,null,null,"",null,null,null,null,"","",null,null,null,null,"",null,null,null,null,"","",null,null,null,null,"",null,null,null,null,"","",null,null,null,null,"",null,null,null,null,"","",null,null,null,null,"",null,null,null,null,"","",null,null,null,null,"",null,null,null,null,"","",null,null,null,null,"",null,null,null,null,"","",null,null,null,null,"",null,null,null,null,"",""]
[21,"محمد احمد محمود 21",21,null,42,63,"",null,null,null,null,"","",null,null,null,null,"",null,null,null,null,"","",null,null,null,null,"",null,null,null,null,"","",null,null,null,null,"",null,null,null,null,"","",null,null,null,null,"",null,null,null,null,"","",null,null,null,null,"",null,null,null,null,"","",null,null,null,null,"",null,null,null,null,"","",null,null,null,null,"",null,null,null,null,"","",null,null,null,null,"",null,null,null,null,"","",null,null,null,null,"",null,null,null,null,"","",null,null,null,null,"",null,null,null,null,"",""]
[22,"محمد احمد محمود 22",22,null,44,66,"",null,null,null,null,"","",null,null,null,null,"",null,null,null,null,"","",null,null,null,null,"",null,null,null,null,"","",null,null,null,null,"",null,null,null,null,"","",null,null,null,null,"",null,null,null,null,"","",null,null,null,null,"",null,null,null,null,"","",null,null,null,null,"",null,null,null,null,"","",null,null,null,null,"",null,null,null,null,"","",null,null,null,null,"",null,null,null,null,"","",null,null,null,null,"",null,null,null,null,"","",null,null,null,null,"",null,null,null,null,"",""]
[23,"محمد احمد محمود 23",23,null,46,69,"",null,null,null,null,"","",null,null,null,null,"",null,null,null,null,"","",null,null,null,null,"",null,null,null,null,"","",null,null,null,null,"",null,null,null,null,"","",null,null,null,null,"",null,null,null,null,"","",null,null,null,null,"",null,null,null,null,"","",null,null,null,null,"",null,null,null,null,"","",null,null,null,null,"",null,null,null,null,"","",null,null,null,null,"",null,null,null,null,"","",null,null,null,null,"",null,null,null,null,"","",null,null,null,null,"",null,null,null,null,"",""]
[24,"محمد احمد محمود 24",24,null,48,72,"",null,null,null,null,"","",null,null,null,null,"",null,null,null,null,"","",null,null,null,null,"",null,null,null,null,"","",null,null,null,null,"",null,null,null,null,"","",null,null,null,null,"",null,null,null,null,"","",null,null,null,null,"",null,null,null,null,"","",null,null,null,null,"",null,null,null,null,"","",null,null,null,null,"",null,null,null,null,"","",null,null,null,null,"",null,null,null,null,"","",null,null,null,null,"",null,null,null,null,"","",null,null,null,null,"",null,null,null,null,"",""]
[25,"محمد احمد محمود 25",25,null,50,75,"",null,null,null,null,"","",null,null,null,null,"",null,null,null,null,"","",null,null,null,null,"",null,null,null,null,"","",null,null,null,null,"",null,null,null,null,"","",null,null,null,null,"",null,null,null,null,"","",null,null,null,null,"",null,null,null,null,"","",null,null,null,null,"",null,null,null,null,"","",null,null,null,null,"",null,null,null,null,"","",null,null,null,null,"",null,null,null,null,"","",null,null,null,null,"",null,null,null,null,"","",null,null,null,null,"",null,null,null,null,"",""]
[26,"محمد احمد محمود 26",26,null,52,78,"",null,null,null,null,"","",null,null,null,null,"",null,null,null,null,"","",null,null,null,null,"",null,null,null,null,"","",null,null,null,null,"",null,null,null,null,"","",null,null,null,null,"",null,null,null,null,"","",null,null,null,null,"",null,null,null,null,"","",null,null,null,null,"",null,null,null,null,"","",null,null,null,null,"",null,null,null,null,"","",null,null,null,null,"",null,null,null,null,"","",null,null,null,null,"",null,null,null,null,"","",null,null,null,null,"",null,null,null,null,"",""]
[27,"محمد احمد محمود 27",27,null,54,81,"",null,null,null,null,"","",null,null,null,null,"",null,null,null,null,"","",null,null,null,null,"",null,null,null,null,"","",null,null,null,null,"",null,null,null,null,"","",null,null,null,null,"",null,null,null,null,"","",null,null,null,null,"",null,null,null,null,"","",null,null,null,null,"",null,null,null,null,"","",null,null,null,null,"",null,null,null,null,"","",null,null,null,null,"",null,null,null,null,"","",null,null,null,null,"",null,null,null,null,"","",null,null,null,null,"",null,null,null,null,"",""]
[28,"محمد احمد محمود 28",28,null,56,84,"",null,null,null,null,"","",null,null,null,null,"",null,null,null,null,"","",null,null,null,null,"",null,null,null,null,"","",null,null,null,null,"",null,null,null,null,"","",null,null,null,null,"",null,null,null,null,"","",null,null,null,null,"",null,null,null,null,"","",null,null,null,null,"",null,null,null,null,"","",null,null,null,null,"",null,null,null,null,"","",null,null,null,null,"",null,null,null,null,"","",null,null,null,null,"",null,null,null,null,"","",null,null,null,null,"",null,null,null,null,"",""]
[29,"محمد احمد محمود 29",29,null,58,87,"",null,null,null,null,"","",null,null,null,null,"",null,null,null,null,"","",null,null,null,null,"",null,null,null,null,"","",null,null,null,null,"",null,null,null,null,"","",null,null,null,null,"",null,null,null,null,"","",null,null,null,null,"",null,null,null,null,"","",null,null,null,null,"",null,null,null,null,"","",null,null,null,null,"",null,null,null,null,"","",null,null,null,null,"",null,null,null,null,"","",null,null,null,null,"",null,null,null,null,"","",null,null,null,null,"",null,null,null,null,"",""]
[30,"محمد احمد محمود 30",30,null,60,90,"",null,null,null,null,"","",null,null,null,null,"",null,null,null,null,"","",null,null,null,null,"",null,null,null,null,"","",null,null,null,null,"",null,null,null,null,"","",null,null,null,null,"",null,null,null,null,"","",null,null,null,null,"",null,null,null,null,"","",null,null,null,null,"",null,null,null,null,"","",null,null,null,null,"",null,null,null,null,"","",null,null,null,null,"",null,null,null,null,"","",null,null,null,null,"",null,null,null,null,"","",null,null,null,null,"",null,null,null,null,"",""]
[31,"محمد احمد محمود 31",31,null,62,93,"",null,null,null,null,"","",null,null,null,null,"",null,null,null,null,"","",null,null,null,null,"",null,null,null,null,"","",null,null,null,null,"",null,null,null,null,"","",null,null,null,null,"",null,null,null,null,"","",null,null,null,null,"",null,null,null,null,"","",null,null,null,null,"",null,null,null,null,"","",null,null,null,null,"",null,null,null,null,"","",null,null,null,null,"",null,null,null,null,"","",null,null,null,null,"",null,null,null,null,"","",null,null,null,null,"",null,null,null,null,"",""]
[32,"محمد احمد محمود 32",32,null,64,96,"",null,null,null,null,"","",null,null,null,null,"",null,null,null,null,"","",null,null,null,null,"",null,null,null,null,"","",null,null,null,null,"",null,null,null,null,"","",null,null,null,null,"",null,null,null,null,"","",null,null,null,null,"",null,null,null,null,"","",null,null,null,null,"",null,null,null,null,"","",null,null,null,null,"",null,null,null,null,"","",null,null,null,null,"",null,null,null,null,"","",null,null,null,null,"",null,null,null,null,"","",null,null,null,null,"",null,null,null,null,"",""]
[33,"محمد احمد محمود 33",33,null,66,99,"",null,null,null,null,"","",null,null,null,null,"",null,null,null,null,"","",null,null,null,null,"",null,null,null,null,"","",null,null,null,null,"",null,null,null,null,"","",null,null,null,null,"",null,null,null,null,"","",null,null,null,null,"",null,null,null,null,"","",null,null,null,null,"",null,null,null,null,"","",null,null,null,null,"",null,null,null,null,"","",null,null,null,null,"",null,null,null,null,"","",null,null,null,null,"",null,null,null,null,"","",null,null,null,null,"",null,null,null,null,"",""]
[34,"محمد احمد محمود 34",34,null,68,102,"",null,null,null,null,"","",null,null,null,null,"",null,null,null,null,"","",null,null,null,null,"",null,null,null,null,"","",null,null,null,null,"",null,null,null,null,"","",null,null,null,null,"",null,null,null,null,"","",null,null,null,null,"",null,null,null,null,"","",null,null,null,null,"",null,null,null,null,"","",null,null,null,null,"",null,null,null,null,"","",null,null,null,null,"",null,null,null,null,"","",null,null,null,null,"",null,null,null,null,"","",null,null,null,null,"",null,null,null,null,"",""]
[35,"محمد احمد محمود 35",35,null,70,105,"",null,null,null,null,"","",null,null,null,null,"",null,null,null,null,"","",null,null,null,null,"",null,null,null,null,"","",null,null,null,null,"",null,null,null,null,"","",null,null,null,null,"",null,null,null,null,"","",null,null,null,null,"",null,null,null,null,"","",null,null,null,null,"",null,null,null,null,"","",null,null,null,null,"",null,null,null,null,"","",null,null,null,null,"",null,null,null,null,"","",null,null,null,null,"",null,null,null,null,"","",null,null,null,null,"",null,null,null,null,"",""]
[36,"محمد احمد محمود 36",36,null,72,108,"",null,null,null,null,"","",null,null,null,null,"",null,null,null,null,"","",null,null,null,null,"",null,null,null,null,"","",null,null,null,null,"",null,null,null,null,"","",null,null,null,null,"",null,null,null,null,"","",null,null,null,null,"",null,null,null,null,"","",null,null,null,null,"",null,null,null,null,"","",null,null,null,null,"",null,null,null,null,"","",null,null,null,null,"",null,null,null,null,"","",null,null,null,null,"",null,null,null,null,"","",null,null,null,null,"",null,null,null,null,"",""]
[37,"محمد احمد محمود 37",37,null,74,111,"",null,null,null,null,"","",null,null,null,null,"",null,null,null,null,"","",null,null,null,null,"",null,null,null,null,"","",null,null,null,null,"",null,null,null,null,"","",null,null,null,null,"",null,null,null,null,"","",null,null,null,null,"",null,null,null,null,"","",null,null,null,null,"",null,null,null,null,"","",null,null,null,null,"",null,null,null,null,"","",null,null,null,null,"",null,null,null,null,"","",null,null,null,null,"",null,null,null,null,"","",null,null,null,null,"",null,null,null,null,"",""]
[38,"محمد احمد محمود 38",38,null,76,114,"",null,null,null,null,"","",null,null,null,null,"",null,null,null,null,"","",null,null,null,null,"",null,null,null,null,"","",null,null,null,null,"",null,null,null,null,"","",null,null,null,null,"",null,null,null,null,"","",null,null,null,null,"",null,null,null,null,"","",null,null,null,null,"",null,null,null,null,"","",null,null,null,null,"",null,null,null,null,"","",null,null,null,null,"",null,null,null,null,"","",null,null,null,null,"",null,null,null,null,"","",null,null,null,null,"",null,null,null,null,"",""]
[39,"محمد احمد محمود 39",39,null,78,117,"",null,null,null,null,"","",null,null,null,null,"",null,null,null,null,"","",null,null,null,null,"",null,null,null,null,"","",null,null,null,null,"",null,null,null,null,"","",null,null,null,null,"",null,null,null,null,"","",null,null,null,null,"",null,null,null,null,"","",null,null,null,null,"",null,null,null,null,"","",null,null,null,null,"",null,null,null,null,"","",null,null,null,null,"",null,null,null,null,"","",null,null,null,null,"",null,null,null,null,"","",null,null,null,null,"",null,null,null,null,"",""]
[40,"محمد احمد محمود 40",40,null,80,120,"",null,null,null,null,"","",null,null,null,null,"",null,null,null,null,"","",null,null,null,null,"",null,null,null,null,"","",null,null,null,null,"",null,null,null,null,"","",null,null,null,null,"",null,null,null,null,"","",null,null,null,null,"",null,null,null,null,"","",null,null,null,null,"",null,null,null,null,"","",null,null,null,null,"",null,null,null,null,"","",null,null,null,null,"",null,null,null,null,"","",null,null,null,null,"",null,null,null,null,"","",null,null,null,null,"",null,null,null,null,"",""]
[41,"محمد احمد محمود 41",41,null,82,123,"",null,null,null,null,"","",null,null,null,null,"",null,null,null,null,"","",null,null,null,null,"",null,null,null,null,"","",null,null,null,null,"",null,null,null,null,"","",null,null,null,null,"",null,null,null,null,"","",null,null,null,null,"",null,null,null,null,"","",null,null,null,null,"",null,null,null,null,"","",null,null,null,null,"",null,null,null,null,"","",null,null,null,null,"",null,null,null,null,"","",null,null,null,null,"",null,null,null,null,"","",null,null,null,null,"",null,null,null,null,"",""]
[42,"محمد احمد محمود 42",42,null,84,126,"",null,null,null,null,"","",null,null,null,null,"",null,null,null,null,"","",null,null,null,null,"",null,null,null,null,"","",null,null,null,null,"",null,null,null,null,"","",null,null,null,null,"",null,null,null,null,"","",null,null,null,null,"",null,null,null,null,"","",null,null,null,null,"",null,null,null,null,"","",null,null,null,null,"",null,null,null,null,"","",null,null,null,null,"",null,null,null,null,"","",null,null,null,null,"",null,null,null,null,"","",null,null,null,null,"",null,null,null,null,"",""]
[43,"محمد احمد محمود 43",43,null,86,129,"",null,null,null,null,"","",null,null,null,null,"",null,null,null,null,"","",null,null,null,null,"",null,null,null,null,"","",null,null,null,null,"",null,null,null,null,"","",null,null,null,null,"",null,null,null,null,"","",null,null,null,null,"",null,null,null,null,"","",null,null,null,null,"",null,null,null,null,"","",null,null,null,null,"",null,null,null,null,"","",null,null,null,null,"",null,null,null,null,"","",null,null,null,null,"",null,null,null,null,"","",null,null,null,null,"",null,null,null,null,"",""]
[44,"محمد احمد محمود 44",44,null,88,132,"",null,null,null,null,"","",null,null,null,null,"",null,null,null,null,"","",null,null,null,null,"",null,null,null,null,"","",null,null,null,null,"",null,null,null,null,"","",null,null,null,null,"",null,null,null,null,"","",null,null,null,null,"",null,null,null,null,"","",null,null,null,null,"",null,null,null,null,"","",null,null,null,null,"",null,null,null,null,"","",null,null,null,null,"",null,null,null,null,"","",null,null,null,null,"",null,null,null,null,"","",null,null,null,null,"",null,null,null,null,"",""]
[45,"محمد احمد محمود 45",45,null,90,135,"",null,null,null,null,"","",null,null,null,null,"",null,null,null,null,"","",null,null,null,null,"",null,null,null,null,"","",null,null,null,null,"",null,null,null,null,"","",null,null,null,null,"",null,null,null,null,"","",null,null,null,null,"",null,null,null,null,"","",null,null,null,null,"",null,null,null,null,"","",null,null,null,null,"",null,null,null,null,"","",null,null,null,null,"",null,null,null,null,"","",null,null,null,null,"",null,null,null,null,"","",null,null,null,null,"",null,null,null,null,"",""]
[46,"محمد احمد محمود 46",46,null,92,138,"",null,null,null,null,"","",null,null,null,null,"",null,null,null,null,"","",null,null,null,null,"",null,null,null,null,"","",null,null,null,null,"",null,null,null,null,"","",null,null,null,null,"",null,null,null,null,"","",null,null,null,null,"",null,null,null,null,"","",null,null,null,null,"",null,null,null,null,"","",null,null,null,null,"",null,null,null,null,"","",null,null,null,null,"",null,null,null,null,"","",null,null,null,null,"",null,null,null,null,"","",null,null,null,null,"",null,null,null,null,"",""]
[47,"محمد احمد محمود 47",47,null,94,141,"",null,null,null,null,"","",null,null,null,null,"",null,null,null,null,"","",null,null,null,null,"",null,null,null,null,"","",null,null,null,null,"",null,null,null,null,"","",null,null,null,null,"",null,null,null,null,"","",null,null,null,null,"",null,null,null,null,"","",null,null,null,null,"",null,null,null,null,"","",null,null,null,null,"",null,null,null,null,"","",null,null,null,null,"",null,null,null,null,"","",null,null,null,null,"",null,null,null,null,"","",null,null,null,null,"",null,null,null,null,"",""]
[48,"محمد احمد محمود 48",48,null,96,144,"",null,null,null,null,"","",null,null,null,null,"",null,null,null,null,"","",null,null,null,null,"",null,null,null,null,"","",null,null,null,null,"",null,null,null,null,"","",null,null,null,null,"",null,null,null,null,"","",null,null,null,null,"",null,null,null,null,"","",null,null,null,null,"",null,null,null,null,"","",null,null,null,null,"",null,null,null,null,"","",null,null,null,null,"",null,null,null,null,"","",null,null,null,null,"",null,null,null,null,"","",null,null,null,null,"",null,null,null,null,"",""]
[49,"محمد احمد محمود 49",49,null,98,147,"",null,null,null,null,"","",null,null,null,null,"",null,null,null,null,"","",null,null,null,null,"",null,null,null,null,"","",null,null,null,null,"",null,null,null,null,"","",null,null,null,null,"",null,null,null,null,"","",null,null,null,null,"",null,null,null,null,"","",null,null,null,null,"",null,null,null,null,"","",null,null,null,null,"",null,null,null,null,"","",null,null,null,null,"",null,null,null,null,"","",null,null,null,null,"",null,null,null,null,"","",null,null,null,null,"",null,null,null,null,"",""]
[50,"محمد احمد محمود 50",50,null,100,150,"",null,null,null,null,"","",null,null,null,null,"",null,null,null,null,"","",null,null,null,null,"",null,null,null,null,"","",null,null,null,null,"",null,null,null,null,"","",null,null,null,null,"",null,null,null,null,"","",null,null,null,null,"",null,null,null,null,"","",null,null,null,null,"",null,null,null,null,"","",null,null,null,null,"",null,null,null,null,"","",null,null,null,null,"",null,null,null,null,"","",null,null,null,null,"",null,null,null,null,"","",null,null,null,null,"",null,null,null,null,"",""]
[51,"محمد احمد محمود 51",51,null,102,153,"",null,null,null,null,"","",null,null,null,null,"",null,null,null,null,"","",null,null,null,null,"",null,null,null,null,"","",null,null,null,null,"",null,null,null,null,"","",null,null,null,null,"",null,null,null,null,"","",null,null,null,null,"",null,null,null,null,"","",null,null,null,null,"",null,null,null,null,"","",null,null,null,null,"",null,null,null,null,"","",null,null,null,null,"",null,null,null,null,"","",null,null,null,null,"",null,null,null,null,"","",null,null,null,null,"",null,null,null,null,"",""]
[52,"محمد احمد محمود 52",52,null,104,156,"",null,null,null,null,"","",null,null,null,null,"",null,null,null,null,"","",null,null,null,null,"",null,null,null,null,"","",null,null,null,null,"",null,null,null,null,"","",null,null,null,null,"",null,null,null,null,"","",null,null,null,null,"",null,null,null,null,"","",null,null,null,null,"",null,null,null,null,"","",null,null,null,null,"",null,null,null,null,"","",null,null,null,null,"",null,null,null,null,"","",null,null,null,null,"",null,null,null,null,"","",null,null,null,null,"",null,null,null,null,"",""]
[53,"محمد احمد محمود 53",53,null,106,159,"",null,null,null,null,"","",null,null,null,null,"",null,null,null,null,"","",null,null,null,null,"",null,null,null,null,"","",null,null,null,null,"",null,null,null,null,"","",null,null,null,null,"",null,null,null,null,"","",null,null,null,null,"",null,null,null,null,"","",null,null,null,null,"",null,null,null,null,"","",null,null,null,null,"",null,null,null,null,"","",null,null,null,null,"",null,null,null,null,"","",null,null,null,null,"",null,null,null,null,"","",null,null,null,null,"",null,null,null,null,"",""]
[54,"محمد احمد محمود 54",54,null,108,162,"",null,null,null,null,"","",null,null,null,null,"",null,null,null,null,"","",null,null,null,null,"",null,null,null,null,"","",null,null,null,null,"",null,null,null,null,"","",null,null,null,null,"",null,null,null,null,"","",null,null,null,null,"",null,null,null,null,"","",null,null,null,null,"",null,null,null,null,"","",null,null,null,null,"",null,null,null,null,"","",null,null,null,null,"",null,null,null,null,"","",null,null,null,null,"",null,null,null,null,"","",null,null,null,null,"",null,null,null,null,"",""]
[55,"محمد احمد محمود 55",55,null,110,165,"",null,null,null,null,"","",null,null,null,null,"",null,null,null,null,"","",null,null,null,null,"",null,null,null,null,"","",null,null,null,null,"",null,null,null,null,"","",null,null,null,null,"",null,null,null,null,"","",null,null,null,null,"",null,null,null,null,"","",null,null,null,null,"",null,null,null,null,"","",null,null,null,null,"",null,null,null,null,"","",null,null,null,null,"",null,null,null,null,"","",null,null,null,null,"",null,null,null,null,"","",null,null,null,null,"",null,null,null,null,"",""]
[56,"محمد احمد محمود 56",56,null,112,168,"",null,null,null,null,"","",null,null,null,null,"",null,null,null,null,"","",null,null,null,null,"",null,null,null,null,"","",null,null,null,null,"",null,null,null,null,"","",null,null,null,null,"",null,null,null,null,"","",null,null,null,null,"",null,null,null,null,"","",null,null,null,null,"",null,null,null,null,"","",null,null,null,null,"",null,null,null,null,"","",null,null,null,null,"",null,null,null,null,"","",null,null,null,null,"",null,null,null,null,"","",null,null,null,null,"",null,null,null,null,"",""]
[57,"محمد احمد محمود 57",57,null,114,171,"",null,null,null,null,"","",null,null,null,null,"",null,null,null,null,"","",null,null,null,null,"",null,null,null,null,"","",null,null,null,null,"",null,null,null,null,"","",null,null,null,null,"",null,null,null,null,"","",null,null,null,null,"",null,null,null,null,"","",null,null,null,null,"",null,null,null,null,"","",null,null,null,null,"",null,null,null,null,"","",null,null,null,null,"",null,null,null,null,"","",null,null,null,null,"",null,null,null,null,"","",null,null,null,null,"",null,null,null,null,"",""]
[58,"محمد احمد محمود 58",58,null,116,174,"",null,null,null,null,"","",null,null,null,null,"",null,null,null,null,"","",null,null,null,null,"",null,null,null,null,"","",null,null,null,null,"",null,null,null,null,"","",null,null,null,null,"",null,null,null,null,"","",null,null,null,null,"",null,null,null,null,"","",null,null,null,null,"",null,null,null,null,"","",null,null,null,null,"",null,null,null,null,"","",null,null,null,null,"",null,null,null,null,"","",null,null,null,null,"",null,null,null,null,"","",null,null,null,null,"",null,null,null,null,"",""]
[59,"محمد احمد محمود 59",59,null,118,177,"",null,null,null,null,"","",null,null,null,null,"",null,null,null,null,"","",null,null,null,null,"",null,null,null,null,"","",null,null,null,null,"",null,null,null,null,"","",null,null,null,null,"",null,null,null,null,"","",null,null,null,null,"",null,null,null,null,"","",null,null,null,null,"",null,null,null,null,"","",null,null,null,null,"",null,null,null,null,"","",null,null,null,null,"",null,null,null,null,"","",null,null,null,null,"",null,null,null,null,"","",null,null,null,null,"",null,null,null,null,"",""]
[60,"محمد احمد محمود 60",60,null,120,180,"",null,null,null,null,"","",null,null,null,null,"",null,null,null,null,"","",null,null,null,null,"",null,null,null,null,"","",null,null,null,null,"",null,null,null,null,"","",null,null,null,null,"",null,null,null,null,"","",null,null,null,null,"",null,null,null,null,"","",null,null,null,null,"",null,null,null,null,"","",null,null,null,null,"",null,null,null,null,"","",null,null,null,null,"",null,null,null,null,"","",null,null,null,null,"",null,null,null,null,"","",null,null,null,null,"",null,null,null,null,"",""]